fUSD/lending_fUSD_20260228
["ID","MTS","AMOUNT","RATE_DAILY","PERIOD"]
[406879964,1772263845547,-1000.0,0.00014247,2]
[406879966,1772263845557,-1000.0,0.00014247,2]
[406879968,1772263845566,-1000.0,0.00014247,2]
[406879971,1772263845575,-1000.0,0.00014247,2]
[406879972,1772263845585,-1000.0,0.00014247,2]
[406879974,1772263845594,-1010.19433144,0.00014247,2]
[406879976,1772263845603,-1000.0,0.00014247,2]
[406879979,1772263845613,-1000.0,0.00014247,2]
[406879981,1772263845623,-1000.0,0.00014247,2]
[406879983,1772263845636,-7613.06,0.00014384,2]
[406879985,1772263845645,-11914.88090663,0.00014388,2]
[406879987,1772263845654,-15412.51812533,0.00014583,2]
[406879989,1772263845664,-7553.22972249,0.00014596,2]
[406879991,1772263845674,-838.0,0.0001461,2]
[406879993,1772263845683,-151.0,0.00014634,2]
[406879995,1772263845693,-197.223165,0.00014655,7]
[406879997,1772263845704,-1500.0,0.00014795,2]
[406879999,1772263845714,-1500.0,0.00014795,2]
[406880001,1772263845725,-1500.0,0.00014795,2]
[406880003,1772263845734,-1500.0,0.00014795,2]
[406880005,1772263845744,-503.90241085,0.00014795,2]
[406880007,1772263845753,-1510.16686171,0.00014795,2]
[406880009,1772263845763,-1500.0,0.00014795,2]
[406880011,1772263845772,-1500.0,0.00014795,2]
[406880014,1772263845781,-1500.0,0.00014795,2]
[406880016,1772263845791,-1500.0,0.00014795,2]
[406880018,1772263845800,-1500.0,0.00014795,2]
[406880020,1772263845809,-1500.0,0.00014795,2]
[406880022,1772263845819,-1500.0,0.00014795,2]
[406880024,1772263845828,-1011.98217898,0.00014795,2]
[406880026,1772263845838,-1500.0,0.00014795,2]
[406880027,1772263845847,-1014.6582369,0.00014795,2]
[406880028,1772263845857,-1093.78241863,0.00014795,2]
[406880029,1772263845866,-1508.05702942,0.00014795,2]
[406880030,1772263845875,-1500.0,0.00014795,2]
[406880031,1772263845885,-1500.0,0.00014795,2]
[406880032,1772263845894,-1500.0,0.00014795,2]
[406880033,1772263845903,-1500.0,0.00014795,2]
[406880034,1772263845914,-1500.0,0.00014795,2]
[406880035,1772263845928,-1500.0,0.00014795,2]
[406880036,1772263845937,-1500.0,0.00014795,2]
[406880037,1772263845947,-1500.0,0.00014795,2]
[406880038,1772263845956,-1500.0,0.00014795,2]
[406880039,1772263845965,-504.49415487,0.00014795,2]
[406880040,1772263845974,-1500.0,0.00014795,2]
[406880041,1772263845983,-506.55258231,0.00014795,2]
[406880042,1772263845993,-1500.0,0.00014795,2]
[406880043,1772263846003,-1500.0,0.00014795,2]
[406880044,1772263846012,-289.52830744,0.00014795,2]
[406880045,1772263846022,-1217.87177273,0.00014795,2]
[406880046,1772263846031,-1508.78545051,0.00014795,2]
[406880047,1772263846041,-1500.0,0.00014795,2]
[406880048,1772263846050,-9990.0,0.00014853,2]
[406880049,1772263846060,-169.4304621,0.000149,2]
[406880050,1772263846069,-7613.06,0.00015068,2]
[406880051,1772263846079,-50000.0,0.0001513,2]
[406880052,1772263846088,-202.72942851,0.00015174,2]
[406880053,1772263846097,-162.0,0.000152,3]
[406880054,1772263846107,-287.81705473,0.00015342,2]
[406880055,1772263846116,-500.0,0.00015342,2]
[406880056,1772263846126,-1932.25528949,0.00015342,2]
[406880057,1772263846135,-2000.0,0.00015342,2]
[406880058,1772263846145,-529.02288049,0.00015342,2]
[406880059,1772263846155,-1747.77184833,0.00015342,2]
[406880060,1772263846165,-2000.0,0.00015342,2]
[406880061,1772263846175,-2000.0,0.00015342,2]
[406880062,1772263846184,-2000.0,0.00015342,2]
[406880063,1772263846194,-2000.0,0.00015342,2]
[406880064,1772263846205,-2000.0,0.00015342,2]
[406880065,1772263846214,-2000.0,0.00015342,2]
[406880066,1772263846224,-1146.84360097,0.00015342,2]
[406880067,1772263846234,-1706.92723051,0.00015342,2]
[406880068,1772263846243,-2000.0,0.00015342,2]
[406880069,1772263846252,-1218.82282533,0.00015342,2]
[406880070,1772263846262,-650.13473928,0.00015342,2]
[406880071,1772263846271,-1013.9298778,0.00015342,2]
[406880072,1772263846281,-2000.0,0.00015342,2]
[406880073,1772263846290,-2041.26009197,0.00015342,2]
[406880074,1772263846300,-743.29162459,0.00015342,2]
[406880075,1772263846309,-2000.0,0.00015342,2]
[406880076,1772263846319,-2000.0,0.00015342,2]
[406880077,1772263846329,-2000.0,0.00015342,2]
[406880078,1772263846339,-2000.0,0.00015342,2]
[406880079,1772263846348,-2000.0,0.00015342,2]
[406880080,1772263846357,-2000.0,0.00015342,2]
[406880081,1772263846471,-535.361197,0.00015616,7]
[406880082,1772263846481,-440.722398,0.00015616,7]
[406880083,1772263846491,-7553.22972249,0.00015652,2]
[406880084,1772263846500,-15412.51812533,0.00015652,2]
[406880085,1772263846509,-7613.06,0.00015753,2]
[406880087,1772263846519,-1015.31004766,0.0001589,2]
[406880088,1772263846529,-2500.0,0.0001589,2]
[406880089,1772263846538,-2500.0,0.0001589,2]
[406880090,1772263846548,-2212.37829793,0.0001589,2]
[406880091,1772263846557,-1019.35272173,0.0001589,2]
[406880092,1772263846567,-2500.0,0.0001589,2]
[406880093,1772263846577,-2501.57340438,0.0001589,2]
[406880094,1772263846587,-1009.53925467,0.0001589,2]
[406880095,1772263846596,-1118.86499239,0.0001589,2]
[406880096,1772263846606,-2526.23779749,0.0001589,2]
[406880097,1772263846615,-2500.0,0.0001589,2]
[406880098,1772263846624,-2500.0,0.0001589,2]
[406880100,1772263846634,-2500.0,0.0001589,2]
[406880101,1772263846643,-703.36470484,0.0001589,2]
[406880102,1772263846652,-4324.334397,0.00015893,7]
[406880103,1772263846662,-150.0,0.000159,2]
[406880104,1772263846672,-500.0,0.00015957,2]
[406880105,1772263846681,-934.68,0.00015957,2]
[406880106,1772263846691,-500.0,0.00015957,2]
[406880107,1772263846701,-500.0,0.00015957,2]
[406880108,1772263846711,-500.0,0.00015957,2]
[406880109,1772263846721,-500.0,0.00015957,2]
[406880110,1772263846730,-500.0,0.00015957,2]
[406880111,1772263846740,-500.0,0.00015957,2]
[406880112,1772263846750,-5018.36116075,0.0001596,2]
[406880113,1772263846759,-9999.99,0.00016116,2]
[406880114,1772263846769,-293.19,0.00016121,2]
[406880115,1772263846779,-174.04581251,0.00016141,2]
[406880116,1772263846789,-160.0,0.00016141,2]
[406880117,1772263846798,-150.0,0.00016304,2]
[406880118,1772263846808,-1000.0,0.00016322,7]
[406880119,1772263846818,-1295.0,0.00016438,2]
[406880120,1772263846827,-266.81662109,0.00016438,2]
[406880121,1772263846838,-7613.06,0.00016438,2]
[406880122,1772263846847,-1032.89246011,0.00016438,2]
[406880123,1772263846857,-2990.28139264,0.00016438,2]
[406880124,1772263846866,-3000.0,0.00016438,2]
[406880125,1772263846876,-1050.78546123,0.00016438,2]
[406880126,1772263846886,-3000.0,0.00016438,2]
[406880127,1772263846895,-1279.13777388,0.00016438,2]
[406880128,1772263846905,-1500.0,0.00016471,2]
[406880129,1772263846920,-1295.0,0.00016493,2]
[406880130,1772263846930,-1295.0,0.00016548,2]
[406880131,1772263846939,-1295.0,0.00016602,2]
[406880132,1772263846950,-1295.0,0.00016657,2]
[406880133,1772263846960,-7553.22972249,0.00016707,2]
[406880134,1772263846969,-1295.0,0.00016712,2]
[406880135,1772263846979,-15412.51812533,0.0001672,2]
[406880136,1772263846989,-1295.0,0.00016767,2]
[406880137,1772263846998,-2000.0,0.0001681,2]
[406880138,1772263847008,-1295.0,0.00016822,2]
[406880139,1772263847017,-1295.0,0.00016876,2]
[406880140,1772263847027,-2000.0,0.0001691,2]
[406880141,1772263847036,-9999.99,0.00016922,2]
[406880142,1772263847046,-29999.99,0.00016922,2]
[406880143,1772263847056,-915.2,0.00016922,2]
[406880144,1772263847065,-1295.0,0.00016931,2]
[406880145,1772263847074,-150.0,0.00016938,2]
[406880146,1772263847083,-1295.0,0.00016986,2]
[406880147,1772263847092,-798.53948142,0.00016986,2]
[406880148,1772263847102,-3500.0,0.00016986,2]
[406880149,1772263847111,-619.72,0.00016998,2]
[406880150,1772263847120,-918.45,0.00016998,2]
[406880151,1772263847130,-500.0,0.00016998,2]
[406880152,1772263847139,-3968.40178151,0.00017,14]
[406880153,1772263847148,-2000.0,0.0001701,2]
[406880154,1772263847157,-1295.0,0.00017041,2]
[406880155,1772263847166,-1295.0,0.00017096,2]
[406880157,1772263847176,-5507.95366483,0.00017099,2]
[406880159,1772263847185,-5000.0,0.00017099,2]
[406880161,1772263847194,-267.46074303,0.00017099,2]
[406880163,1772263847204,-1500.0,0.0001711,2]
[406880165,1772263847213,-1500.0,0.0001711,2]
[406880167,1772263847222,-2632.101218,0.0001711,2]
[406880169,1772263847232,-1000.0,0.0001711,2]
[406880170,1772263847241,-733.851,0.0001711,2]
[406880171,1772263847251,-308.99,0.00017124,2]
[406880173,1772263847260,-1295.0,0.0001715,2]
[406880175,1772263847270,-1295.0,0.00017205,2]
[406880177,1772263847280,-1295.0,0.0001726,2]
[406880179,1772263847289,-488.0,0.00017308,2]
[406880181,1772263847298,-1295.0,0.00017315,2]
[406880183,1772263847309,-1295.0,0.0001737,2]
[406880184,1772263847318,-1295.0,0.00017424,2]
[406880186,1772263847327,-350.0,0.00017438,2]
[406880187,1772263847336,-1295.0,0.00017479,2]
[406880188,1772263847346,-765.0,0.00017487,2]
[406880189,1772263847355,-6800.0,0.000175,6]
[406880190,1772263847365,-500.0,0.00017533,2]
[406880191,1772263847374,-1295.0,0.00017534,2]
[406880192,1772263847383,-4000.0,0.00017534,2]
[406880193,1772263847392,-488.0,0.0001755,2]
[406880194,1772263847401,-1295.0,0.00017589,2]
[406880195,1772263847410,-1703.92584425,0.0001759,2]
[406880196,1772263847419,-1300.0,0.000176,6]
[406880197,1772263847428,-1295.0,0.00017643,2]
[406880198,1772263847437,-277.35679052,0.00017647,2]
[406880199,1772263847447,-202.408455,0.00017691,7]
[406880200,1772263847458,-151.0,0.00017697,2]
[406880201,1772263847468,-1310.69339842,0.00017698,2]
[406880202,1772263847477,-500.0,0.00017699,2]
[406880203,1772263847486,-500.0,0.00017699,2]
[406880204,1772263847495,-500.0,0.00017699,2]
[406880205,1772263847504,-500.0,0.00017699,2]
[406880206,1772263847514,-648.3262986,0.00017699,2]
[406880207,1772263847523,-1500000.0,0.000177,2]
[406880208,1772263847533,-1300.0,0.000177,6]
[406880209,1772263847543,-765.0,0.00017716,2]
[406880210,1772263847552,-7553.22972249,0.00017762,2]
[406880211,1772263847561,-15412.51812533,0.00017788,2]
[406880212,1772263847571,-10000.0,0.000178,2]
[406880213,1772263847580,-1300.0,0.000178,6]
[406880214,1772263847589,-5000.0,0.00017808,2]
[406880215,1772263847598,-500.0,0.00017808,2]
[406880216,1772263847608,-506.25703057,0.00017808,2]
[406880217,1772263847617,-506.25703057,0.00017808,2]
[406880218,1772263847627,-506.25703057,0.00017808,2]
[406880219,1772263847636,-506.25703057,0.00017808,2]
[406880220,1772263847645,-506.25703057,0.00017808,2]
[406880221,1772263847655,-506.25703057,0.00017808,2]
[406880222,1772263847664,-506.25703057,0.00017808,2]
[406880223,1772263847673,-506.25703057,0.00017808,2]
[406880224,1772263847682,-506.25703057,0.00017808,2]
[406880225,1772263847692,-506.25703057,0.00017808,2]
[406880226,1772263847702,-506.25703057,0.00017808,2]
[406880227,1772263847712,-506.25703057,0.00017808,2]
[406880228,1772263847722,-506.25703057,0.00017808,2]
[406880229,1772263847731,-506.25703057,0.00017808,2]
[406880230,1772263847740,-506.25703057,0.00017808,2]
[406880231,1772263847750,-506.25703057,0.00017808,2]
[406880232,1772263847760,-506.25703057,0.00017808,2]
[406880233,1772263847769,-506.25703057,0.00017808,2]
[406880234,1772263847779,-506.25703057,0.00017808,2]
[406880235,1772263847788,-506.25703057,0.00017808,2]
[406880236,1772263847799,-538.47338706,0.00017808,2]
[406880237,1772263847808,-538.47338706,0.00017808,2]
[406880238,1772263847817,-538.47338706,0.00017808,2]
[406880239,1772263847826,-538.47338706,0.00017808,2]
[406880240,1772263847836,-538.47338706,0.00017808,2]
[406880241,1772263847845,-538.47338706,0.00017808,2]
[406880242,1772263847856,-538.47338706,0.00017808,2]
[406880243,1772263847865,-538.47338706,0.00017808,2]
[406880245,1772263847874,-692.31302418,0.00017808,2]
[406880246,1772263847884,-692.31302418,0.00017808,2]
[406880247,1772263847894,-800.0,0.00017808,2]
[406880248,1772263847903,-140156.87642438,0.0001783,2]
[406880249,1772263847913,-619.72,0.00017862,2]
[406880250,1772263847927,-918.45,0.00017862,2]
[406880251,1772263847936,-512.80115338,0.00017862,2]
[406880252,1772263847945,-500.0,0.00017863,2]
[406880253,1772263847955,-25000.0,0.00017865,3]
[406880254,1772263847965,-25000.0,0.00017874,3]
[406880255,1772263847974,-25000.0,0.00017882,3]
[406880256,1772263847984,-249.3060658,0.00017888,2]
[406880257,1772263847994,-25000.0,0.00017891,3]
[406880258,1772263848003,-765.0,0.00017894,2]
[406880259,1772263848013,-10189.6131,0.000179,2]
[406880260,1772263848022,-32888.5933,0.000179,2]
[406880261,1772263848031,-150.0,0.000179,2]
[406880262,1772263848040,-1000.0,0.000179,2]
[406880263,1772263848049,-25000.0,0.000179,3]
[406880264,1772263848057,-150.0,0.000179,2]
[406880265,1772263848067,-150.0,0.000179,2]
[406880266,1772263848077,-150.0,0.000179,2]
[406880267,1772263848087,-150.0,0.000179,2]
[406880268,1772263848096,-3350.89769703,0.000179,3]
[406880269,1772263848105,-150.0,0.000179,2]
[406880270,1772263848115,-1300.0,0.000179,6]
[406880271,1772263848124,-150.0,0.000179,2]
[406880272,1772263848133,-1286.00229613,0.000179,2]
[406880273,1772263848142,-11914.88090663,0.000179,2]
[406880274,1772263848152,-18939.0,0.000179,2]
[406880275,1772263848161,-247.7336316,0.00017912,2]
[406880276,1772263848170,-500.0,0.00017918,2]
[406880277,1772263848179,-21736.0539141,0.00017946,2]
[406880278,1772263848189,-111079.6287404,0.00017946,2]
[406880279,1772263848199,-7190.324094,0.00017946,2]
[406880280,1772263848208,-6585.570904,0.00017946,2]
[406880281,1772263848218,-15663.8135679,0.00017946,2]
[406880282,1772263848227,-500.0,0.00017972,2]
[406880283,1772263848237,-372.998721,0.00017975,2]
[406880284,1772263848248,-1703.92584425,0.0001798,2]
[406880285,1772263848266,-227.79036117,0.00017982,2]
[406880286,1772263848277,-500.0,0.00017982,2]
[406880287,1772263848286,-660.0,0.0001799,2]
[406880288,1772263848296,-15378.2973338,0.0001799,2]
[406880289,1772263848306,-470.6941686,0.0001799,2]
[406880290,1772263848316,-5261.1476187,0.0001799,2]
[406880291,1772263848324,-230651.85903448,0.0001799,2]
[406880298,1772263848639,-270.00005,8.328e-05,2]
[406880300,1772263848651,-229.99995,8.328e-05,2]
[406880302,1772263848660,-1246.86869711,0.0001799,2]
[406880305,1772263848676,-368.80366146,0.0001799,2]
[406880307,1772263848687,-319.185,0.0001799,2]
[406880311,1772263848708,-250.0,0.00015,2]
[406880313,1772263848717,-294.2039824,0.0001799,2]
[406880317,1772263848751,-253.24101467,8.602e-05,2]
[406880320,1772263848770,-246.75898533,8.602e-05,2]
[406880322,1772263848779,-55425.20916454,0.0001799,2]
[406880324,1772263848790,-97501.27707805,0.0001799,2]
[406880336,1772263848893,-500.0,8.876e-05,2]
[406880337,1772263848902,-500.0,9.15e-05,2]
[406880338,1772263848913,-29.93288924,9.424e-05,2]
[406880339,1772263848925,-470.06711076,9.424e-05,2]
[406880340,1772263848934,-260.24328924,9.698e-05,2]
[406880341,1772263848944,-239.75671076,9.698e-05,2]
[406880342,1772263848956,-2499.04309042,0.00010953,2]
[406880343,1772263848966,-300.0,0.00017,2]
[406880344,1772263848976,-8103.88326816,0.0001799,2]
[406880345,1772263848985,-9562.5188635,0.0001799,2]
[406880346,1772263848995,-350.0,0.00017997,2]
[406880347,1772263849005,-500.0,0.00017998,2]
[406880348,1772263849014,-500.0,0.00017998,2]
[406880349,1772263849024,-500.0,0.00017998,2]
[406880350,1772263849034,-500.0,0.00017998,2]
[406880351,1772263849043,-500.0,0.00017998,2]
[406880352,1772263849053,-219.67514616,0.00017998,2]
[406880353,1772263849063,-500.0,0.00017998,2]
[406880354,1772263849072,-500.0,0.00017998,2]
[406880355,1772263849082,-500.0,0.00017998,2]
[406880357,1772263849090,-619.72,0.00017998,2]
[406880358,1772263849099,-619.72,0.00017998,2]
[406880359,1772263849109,-619.72,0.00017998,2]
[406880360,1772263849119,-500.0,0.00017998,2]
[406880361,1772263849129,-500.0,0.00017998,2]
[406880362,1772263849139,-161.88293327,0.00017998,2]
[406880363,1772263849149,-500.0,0.00017998,2]
[406880364,1772263849158,-500.0,0.00017998,2]
[406880365,1772263849167,-500.0,0.00017998,2]
[406880366,1772263849177,-500.0,0.00017998,2]
[406880367,1772263849186,-934.68,0.00017998,2]
[406880368,1772263849196,-500.0,0.00017998,2]
[406880369,1772263849213,-500.0,0.00017998,2]
[406880370,1772263849222,-500.0,0.00017998,2]
[406880371,1772263849231,-918.45,0.00017998,2]
[406880372,1772263849240,-918.45,0.00017998,2]
[406880373,1772263849249,-918.45,0.00017998,2]
[406880374,1772263849259,-500.0,0.00017998,2]
[406880375,1772263849268,-500.0,0.00017998,2]
[406880376,1772263849277,-500.0,0.00017998,2]
[406880377,1772263849286,-500.0,0.00017998,2]
[406880378,1772263849295,-595.16967246,0.00017998,2]
[406880379,1772263849304,-502.46010637,0.00017998,5]
[406880380,1772263849313,-529.72247796,0.00017998,2]
[406880381,1772263849322,-500.0,0.00017998,5]
[406880382,1772263849332,-500.0,0.00017998,5]
[406880383,1772263849341,-500.0,0.00017998,5]
[406880384,1772263849350,-500.0,0.00017998,5]
[406880385,1772263849360,-500.0,0.00017998,5]
[406880386,1772263849370,-500.0,0.00017998,5]
[406880387,1772263849379,-500.0,0.00017998,5]
[406880388,1772263849388,-291.64589034,0.00017998,5]
[406880389,1772263849398,-500.0,0.00017998,5]
[406880390,1772263849409,-500.0,0.00017998,5]
[406880391,1772263849419,-174.61919141,0.00017998,5]
[406880392,1772263849428,-500.0,0.00017998,5]
[406880393,1772263849437,-500.0,0.00017998,5]
[406880394,1772263849447,-181.08010149,0.00017998,5]
[406880395,1772263849458,-151.0,0.00017998,5]
[406880396,1772263849468,-500.0,0.00017998,5]
[406880397,1772263849478,-500.0,0.00017998,5]
[406880398,1772263849487,-187.78006525,0.00017998,5]
[406880399,1772263849496,-151.0,0.00017998,5]
[406880400,1772263849506,-500.0,0.00017998,5]
[406880401,1772263849515,-500.0,0.00017998,5]
[406880402,1772263849526,-269.917619,0.00017998,5]
[406880403,1772263849535,-227.3234191,0.00017998,5]
[406880404,1772263849544,-500.0,0.00017998,5]
[406880405,1772263849554,-500.0,0.00017998,5]
[406880406,1772263849563,-151.0,0.00017998,5]
[406880407,1772263849572,-279.9045709,0.00017998,5]
[406880408,1772263849582,-500.0,0.00017998,5]
[406880409,1772263849592,-151.0,0.00017998,5]
[406880410,1772263849601,-500.0,0.00017998,5]
[406880411,1772263849610,-290.26104003,0.00017998,5]
[406880412,1772263849619,-151.0,0.00017998,5]
[406880413,1772263849628,-500.0,0.00017998,5]
[406880414,1772263849637,-151.0,0.00017998,5]
[406880415,1772263849645,-500.0,0.00017998,5]
[406880416,1772263849655,-303.71842786,0.00017998,5]
[406880417,1772263849664,-156.74932774,0.00017998,5]
[406880418,1772263849673,-500.0,0.00017998,5]
[406880419,1772263849682,-151.0,0.00017998,5]
[406880420,1772263849692,-500.0,0.00017998,5]
[406880421,1772263849702,-500.0,0.00017998,5]
[406880422,1772263849711,-151.0,0.00017998,5]
[406880423,1772263849721,-500.0,0.00017998,5]
[406880424,1772263849730,-500.0,0.00017998,5]
[406880425,1772263849739,-151.0,0.00017998,5]
[406880426,1772263849748,-500.0,0.00017998,5]
[406880427,1772263849758,-500.0,0.00017998,5]
[406880428,1772263849768,-151.0,0.00017998,5]
[406880429,1772263849776,-500.0,0.00017998,5]
[406880430,1772263849786,-151.0,0.00017998,5]
[406880431,1772263849795,-500.0,0.00017998,5]
[406880432,1772263849804,-151.0,0.00017998,5]
[406880433,1772263849814,-151.0,0.00017998,5]
[406880434,1772263849823,-500.0,0.00017998,5]
[406880435,1772263849833,-500.0,0.00017998,5]
[406880436,1772263849842,-500.0,0.00017998,5]
[406880437,1772263849851,-500.0,0.00017998,5]
[406880438,1772263849860,-500.0,0.00017998,5]
[406880439,1772263849869,-500.0,0.00017998,5]
[406880440,1772263849879,-500.0,0.00017998,5]
[406880441,1772263849888,-500.0,0.00017998,5]
[406880442,1772263849897,-500.0,0.00017998,5]
[406880443,1772263849906,-151.0,0.00017998,5]
[406880444,1772263849917,-151.0,0.00017998,5]
[406880445,1772263849928,-151.0,0.00017998,5]
[406880446,1772263849938,-151.0,0.00017998,5]
[406880447,1772263849947,-151.0,0.00017998,5]
[406880448,1772263849957,-151.0,0.00017998,5]
[406880449,1772263849967,-151.0,0.00017998,5]
[406880450,1772263849976,-151.0,0.00017998,5]
[406880451,1772263849985,-151.0,0.00017998,5]
[406880452,1772263849994,-151.0,0.00017998,5]
[406880453,1772263850004,-151.0,0.00017998,5]
[406880454,1772263850013,-668.65185757,0.00017998,5]
[406880455,1772263850022,-151.0,0.00017998,5]
[406880456,1772263850031,-693.3919763,0.00017998,5]
[406880457,1772263850041,-719.04747942,0.00017998,5]
[406880458,1772263850051,-745.65223616,0.00017998,5]
[406880459,1772263850060,-773.2413689,0.00017998,5]
[406880460,1772263850069,-801.85129955,0.00017998,5]
[406880461,1772263850079,-831.51979763,0.00017998,5]
[406880462,1772263850088,-862.28603014,0.00017998,5]
[406880463,1772263850098,-894.19061326,0.00017998,5]
[406880464,1772263850108,-927.27566595,0.00017998,5]
[406880465,1772263850117,-961.58486559,0.00017998,5]
[406880466,1772263850127,-997.16350561,0.00017998,5]
[406880467,1772263850136,-1432.94041959,0.00017999,5]
[406880468,1772263850147,-1432.9404196,0.00017999,5]
[406880469,1772263850157,-500.0,0.00017999,2]
[406880470,1772263850167,-500.0,0.00017999,2]
[406880471,1772263850177,-619.72,0.00017999,2]
[406880472,1772263850187,-619.72,0.00017999,2]
[406880473,1772263850196,-619.72,0.00017999,2]
[406880474,1772263850208,-619.72,0.00017999,2]
[406880475,1772263850219,-619.72,0.00017999,2]
[406880476,1772263850228,-619.72,0.00017999,2]
[406880477,1772263850238,-619.72,0.00017999,2]
[406880478,1772263850247,-619.72,0.00017999,2]
[406880479,1772263850257,-619.72,0.00017999,2]
[406880480,1772263850266,-619.72,0.00017999,2]
[406880481,1772263850275,-619.72,0.00017999,2]
[406880482,1772263850284,-619.72,0.00017999,2]
[406880483,1772263850293,-619.72,0.00017999,2]
[406880484,1772263850302,-619.72,0.00017999,2]
[406880485,1772263850311,-619.72,0.00017999,2]
[406880486,1772263850320,-300.0,0.00017999,2]
[406880487,1772263850330,-619.72,0.00017999,2]
[406880488,1772263850339,-619.77595352,0.00017999,2]
[406880489,1772263850350,-500.0,0.00017999,2]
[406880490,1772263850471,-500.0,0.00017999,2]
[406880491,1772263850482,-500.0,0.00017999,2]
[406880492,1772263850492,-323.52915924,0.00017999,2]
[406880493,1772263850502,-500.0,0.00017999,2]
[406880494,1772263850512,-500.0,0.00017999,2]
[406880495,1772263850523,-329.64340271,0.00017999,2]
[406880496,1772263850533,-934.68,0.00017999,2]
[406880497,1772263850542,-934.68,0.00017999,2]
[406880498,1772263850551,-934.68,0.00017999,2]
[406880499,1772263850561,-934.68,0.00017999,2]
[406880500,1772263850570,-934.68,0.00017999,2]
[406880501,1772263850580,-934.68,0.00017999,2]
[406880502,1772263850589,-934.68,0.00017999,2]
[406880503,1772263850599,-934.68,0.00017999,2]
[406880504,1772263850608,-934.68,0.00017999,2]
[406880505,1772263850617,-934.68,0.00017999,2]
[406880506,1772263850627,-934.68,0.00017999,2]
[406880507,1772263850636,-934.68,0.00017999,2]
[406880508,1772263850645,-934.68,0.00017999,2]
[406880509,1772263850655,-934.85543711,0.00017999,2]
[406880510,1772263850664,-500.0,0.00017999,2]
[406880511,1772263850674,-497.70153186,0.00017999,2]
[406880512,1772263850683,-300.0,0.00017999,2]
[406880513,1772263850693,-500.0,0.00017999,2]
[406880514,1772263850704,-500.0,0.00017999,2]
[406880515,1772263850713,-500.0,0.00017999,2]
[406880516,1772263850723,-500.0,0.00017999,2]
[406880517,1772263850733,-500.0,0.00017999,2]
[406880518,1772263850742,-500.0,0.00017999,2]
[406880519,1772263850752,-500.0,0.00017999,2]
[406880520,1772263850762,-500.0,0.00017999,2]
[406880521,1772263850772,-586.80631414,0.00017999,2]
[406880522,1772263850782,-500.0,0.00017999,2]
[406880523,1772263850791,-500.0,0.00017999,2]
[406880524,1772263850801,-500.0,0.00017999,2]
[406880525,1772263850811,-500.0,0.00017999,2]
[406880526,1772263850820,-500.0,0.00017999,2]
[406880527,1772263850830,-500.0,0.00017999,2]
[406880528,1772263850840,-500.0,0.00017999,2]
[406880529,1772263850850,-500.0,0.00017999,2]
[406880530,1772263850859,-500.0,0.00017999,2]
[406880531,1772263850869,-500.0,0.00017999,2]
[406880532,1772263850878,-500.0,0.00017999,2]
[406880533,1772263850887,-500.0,0.00017999,2]
[406880534,1772263850897,-281.09297896,0.00017999,2]
[406880535,1772263850907,-918.45,0.00017999,2]
[406880536,1772263850920,-918.45,0.00017999,2]
[406880537,1772263850930,-918.45,0.00017999,2]
[406880538,1772263850939,-918.45,0.00017999,2]
[406880539,1772263850950,-918.45,0.00017999,2]
[406880540,1772263850962,-918.45,0.00017999,2]
[406880541,1772263850971,-918.45,0.00017999,2]
[406880542,1772263850984,-918.45,0.00017999,2]
[406880543,1772263850993,-918.45,0.00017999,2]
[406880544,1772263851003,-918.45,0.00017999,2]
[406880545,1772263851012,-918.45,0.00017999,2]
[406880546,1772263851022,-918.45,0.00017999,2]